[Event "*** Titled Tuesday Blitz"]
[Site "Chess.com"]
[Date "2020.04.14"]
[Round "3"]
[White "Aemulus20"]
[Black "davigator"]
[Result "1-0"]
[WhiteElo "2582"]
[BlackElo "2361"]
[TimeControl "180+1"]
[EndTime "10:31:34 PDT"]
[Termination "Aemulus20 won on time"]

1. e4 {[%clk 0:03:00.9]} 1... c5 {[%clk 0:02:59.7]} 2. Nf3 {[%clk 0:03:00.6]}
2... Nc6 {[%clk 0:02:59]} 3. d4 {[%clk 0:03:01.2]} 3... cxd4 {[%clk 0:02:58.4]}
4. Nxd4 {[%clk 0:03:02.1]} 4... Nf6 {[%clk 0:02:57.7]} 5. Nc3 {[%clk 0:03:02.3]}
5... d6 {[%clk 0:02:57.8]} 6. Bg5 {[%clk 0:03:00.7]} 6... a6 {[%clk 0:02:56.1]}
7. Qd2 {[%clk 0:03:00.7]} 7... e6 {[%clk 0:02:55.3]} 8. f4 {[%clk 0:02:59.2]}
8... Bd7 {[%clk 0:02:55.5]} 9. Nf3 {[%clk 0:02:58.9]} 9... Qc7 {[%clk
0:02:44.7]} 10. O-O-O {[%clk 0:02:58.2]} 10... h6 {[%clk 0:02:42.5]} 11. Bh4
{[%clk 0:02:55.2]} 11... O-O-O {[%clk 0:02:36.7]} 12. Bd3 {[%clk 0:02:46.2]}
12... Be7 {[%clk 0:02:29.1]} 13. h3 {[%clk 0:02:37.8]} 13... Rhe8 {[%clk
0:02:28]} 14. g4 {[%clk 0:02:36.2]} 14... Kb8 {[%clk 0:02:22.9]} 15. Bf2 {[%clk
0:02:35.7]} 15... Bc8 {[%clk 0:02:20.3]} 16. Be3 {[%clk 0:02:25.1]} 16... Ka8
{[%clk 0:02:15.1]} 17. Qf2 {[%clk 0:02:24]} 17... Nd7 {[%clk 0:02:14.4]} 18. Na4
{[%clk 0:02:22.5]} 18... Qb8 {[%clk 0:02:08.4]} 19. Nb6+ {[%clk 0:02:20.6]}
19... Nxb6 {[%clk 0:02:07.3]} 20. Bxb6 {[%clk 0:02:21.5]} 20... Rd7 {[%clk
0:02:07.6]} 21. Nd2 {[%clk 0:02:16.7]} 21... Bd8 {[%clk 0:02:07.5]} 22. Nc4
{[%clk 0:02:16]} 22... Be7 {[%clk 0:02:03]} 23. Ba5 {[%clk 0:02:10.6]} 23... b5
{[%clk 0:02:02.8]} 24. Nb6+ {[%clk 0:02:09.6]} 24... Kb7 {[%clk 0:02:01.5]} 25.
Nxd7 {[%clk 0:02:08.9]} 25... Bxd7 {[%clk 0:02:02.1]} 26. Qb6+ {[%clk
0:02:08.5]} 26... Kc8 {[%clk 0:02:02.2]} 27. Qxa6+ {[%clk 0:02:08.1]} 27... Qb7
{[%clk 0:02:01.8]} 28. Bxb5 {[%clk 0:01:56.3]} 28... Nxa5 {[%clk 0:01:58.4]} 29.
Bxd7+ {[%clk 0:01:48.1]} 29... Kxd7 {[%clk 0:01:58.3]} 30. Qxa5 {[%clk
0:01:47.2]} 30... Rb8 {[%clk 0:01:58.9]} 31. Qa4+ {[%clk 0:01:29.7]} 31... Kd8
{[%clk 0:01:57.4]} 32. b3 {[%clk 0:01:30.1]} 32... g5 {[%clk 0:01:53.3]} 33.
fxg5 {[%clk 0:01:23.4]} 33... Bxg5+ {[%clk 0:01:49]} 34. Kb1 {[%clk 0:01:23.6]}
34... Be7 {[%clk 0:01:48.8]} 35. e5 {[%clk 0:01:21.6]} 35... d5 {[%clk
0:01:48.1]} 36. Rhf1 {[%clk 0:01:21.7]} 36... Ra8 {[%clk 0:01:46.3]} 37. Qd4
{[%clk 0:01:21.7]} 37... Ke8 {[%clk 0:01:44.8]} 38. Rf2 {[%clk 0:01:14.5]} 38...
Qa6 {[%clk 0:01:42.9]} 39. c3 {[%clk 0:01:07.5]} 39... Ra7 {[%clk 0:01:42.8]}
40. Rdf1 {[%clk 0:01:06.4]} 40... Bf8 {[%clk 0:01:39.6]} 41. Qa4+ {[%clk
0:01:03.9]} 41... Qxa4 {[%clk 0:01:37.5]} 42. bxa4 {[%clk 0:01:04.8]} 42... Bc5
{[%clk 0:01:36.9]} 43. Rf6 {[%clk 0:01:02.9]} 43... Bf8 {[%clk 0:01:29]} 44. h4
{[%clk 0:00:59.3]} 44... Bg7 {[%clk 0:01:27.9]} 45. R6f3 {[%clk 0:00:57]} 45...
Bxe5 {[%clk 0:01:28.5]} 46. g5 {[%clk 0:00:56.5]} 46... hxg5 {[%clk 0:01:28.2]}
47. hxg5 {[%clk 0:00:57.4]} 47... Rc7 {[%clk 0:01:20.9]} 48. g6 {[%clk
0:00:55.3]} 48... f5 {[%clk 0:01:19.4]} 49. Re1 {[%clk 0:00:55.1]} 49... Bxc3
{[%clk 0:01:18.6]} 50. Rxe6+ {[%clk 0:00:55.1]} 50... Kf8 {[%clk 0:01:18.6]} 51.
Rxf5+ {[%clk 0:00:54.3]} 51... Kg7 {[%clk 0:01:19]} 52. Rf7+ {[%clk 0:00:49.4]}
52... Rxf7 {[%clk 0:01:18.9]} 53. gxf7 {[%clk 0:00:50.3]} 53... Kxf7 {[%clk
0:01:19.5]} 54. Rc6 {[%clk 0:00:51]} 54... Bb4 {[%clk 0:01:17.3]} 55. Kc2 {[%clk
0:00:51.6]} 55... Ke7 {[%clk 0:01:16.6]} 56. Kb3 {[%clk 0:00:50.4]} 56... Be1
{[%clk 0:01:15.6]} 57. Rc2 {[%clk 0:00:47.4]} 57... Kd6 {[%clk 0:01:15.1]} 58.
Re2 {[%clk 0:00:44.4]} 58... Ba5 {[%clk 0:01:13.9]} 59. Re8 {[%clk 0:00:41.1]}
59... Kc5 {[%clk 0:01:11.1]} 60. Rb8 {[%clk 0:00:40.9]} 60... Kc6 {[%clk
0:01:09.2]} 61. Rb5 {[%clk 0:00:40.8]} 61... Bc7 {[%clk 0:01:06.7]} 62. Kc2
{[%clk 0:00:40.8]} 62... Be5 {[%clk 0:01:04.2]} 63. Kd3 {[%clk 0:00:41.7]} 63...
Bf6 {[%clk 0:01:02.1]} 64. Rb3 {[%clk 0:00:40.7]} 64... Bd8 {[%clk 0:01:00.6]}
65. Rb8 {[%clk 0:00:33]} 65... Bb6 {[%clk 0:00:56.7]} 66. Kc3 {[%clk 0:00:29.4]}
66... Ba5+ {[%clk 0:00:54.7]} 67. Kb3 {[%clk 0:00:29.3]} 67... Bb6 {[%clk
0:00:54.8]} 68. Rc8+ {[%clk 0:00:27.4]} 68... Kb7 {[%clk 0:00:53.7]} 69. Rc2
{[%clk 0:00:26.2]} 69... Ba5 {[%clk 0:00:51.9]} 70. Rc5 {[%clk 0:00:25.2]} 70...
Bc7 {[%clk 0:00:48]} 71. Rxd5 {[%clk 0:00:25.2]} 71... Ka6 {[%clk 0:00:48.4]}
72. Kc4 {[%clk 0:00:24.1]} 72... Bg3 {[%clk 0:00:45.4]} 73. Rg5 {[%clk
0:00:23.6]} 73... Bf2 {[%clk 0:00:44.4]} 74. Rg6+ {[%clk 0:00:23.7]} 74... Ka5
{[%clk 0:00:43.9]} 75. Rf6 {[%clk 0:00:18.6]} 75... Be1 {[%clk 0:00:41.1]} 76.
Kb3 {[%clk 0:00:18]} 76... Bd2 {[%clk 0:00:40]} 77. Rf5+ {[%clk 0:00:17.9]}
77... Ka6 {[%clk 0:00:40]} 78. Kc4 {[%clk 0:00:17.9]} 78... Kb6 {[%clk
0:00:35.8]} 79. Rb5+ {[%clk 0:00:15.3]} 79... Ka6 {[%clk 0:00:35.8]} 80. Kd5
{[%clk 0:00:15.8]} 80... Be3 {[%clk 0:00:33.6]} 81. Kc6 {[%clk 0:00:16.3]} 81...
Bf2 {[%clk 0:00:32.2]} 82. Rf5 {[%clk 0:00:16.1]} 82... Be3 {[%clk 0:00:25.5]}
83. a3 {[%clk 0:00:16.4]} 83... Bd4 {[%clk 0:00:22.5]} 84. Rf8 {[%clk
0:00:16.1]} 84... Ka7 {[%clk 0:00:21.7]} 85. a5 {[%clk 0:00:14.2]} 85... Bb2
{[%clk 0:00:19.9]} 86. a4 {[%clk 0:00:13.6]} 86... Bc3 {[%clk 0:00:19.8]} 87.
Kb5 {[%clk 0:00:12.4]} 87... Bd4 {[%clk 0:00:19.6]} 88. Rf7+ {[%clk 0:00:12.4]}
88... Ka8 {[%clk 0:00:19.7]} 89. Kc6 {[%clk 0:00:11.9]} 89... Bc3 {[%clk
0:00:16.9]} 90. Kb6 {[%clk 0:00:11.1]} 90... Bd4+ {[%clk 0:00:16.8]} 91. Ka6
{[%clk 0:00:11.6]} 91... Kb8 {[%clk 0:00:16.4]} 92. Rd7 {[%clk 0:00:09.8]} 92...
Be3 {[%clk 0:00:15.7]} 93. Rd8+ {[%clk 0:00:09.9]} 93... Kc7 {[%clk 0:00:15.2]}
94. Rd3 {[%clk 0:00:10.6]} 94... Bf2 {[%clk 0:00:14.2]} 95. Rb3 {[%clk
0:00:10.1]} 95... Kc8 {[%clk 0:00:13.5]} 96. Rb6 {[%clk 0:00:10]} 96... Kc7
{[%clk 0:00:13.2]} 97. Kb5 {[%clk 0:00:08.8]} 97... Be3 {[%clk 0:00:10.7]} 98.
Re6 {[%clk 0:00:08.6]} 98... Bf2 {[%clk 0:00:10.3]} 99. a6 {[%clk 0:00:09]}
99... Kb8 {[%clk 0:00:10.1]} 100. Re8+ {[%clk 0:00:08.7]} 100... Ka7 {[%clk
0:00:10.1]} 101. Rf8 {[%clk 0:00:09.3]} 101... Bg1 {[%clk 0:00:09.3]} 102. Rf7+
{[%clk 0:00:10.2]} 102... Ka8 {[%clk 0:00:08.3]} 103. Kc6 {[%clk 0:00:09.1]}
103... Be3 {[%clk 0:00:06.8]} 104. Rf3 {[%clk 0:00:09.1]} 104... Bg1 {[%clk
0:00:06.1]} 105. Rg3 {[%clk 0:00:09.1]} 105... Bf2 {[%clk 0:00:05.2]} 106. Rg7
{[%clk 0:00:09.4]} 106... Be3 {[%clk 0:00:04.4]} 107. Rf7 {[%clk 0:00:09.4]}
107... Bg1 {[%clk 0:00:03.9]} 108. Kb5 {[%clk 0:00:09.8]} 108... Be3 {[%clk
0:00:03.1]} 109. a7 {[%clk 0:00:10.1]} 109... Bxa7 {[%clk 0:00:01.9]} 110. Ka6
{[%clk 0:00:10.2]} 110... Bb8 {[%clk 0:00:01.4]} 111. a5 {[%clk 0:00:09.1]} 1-0

[Event "*** Titled Tuesday Blitz"]
[Site "Chess.com"]
[Date "2020.04.14"]
[Round "3"]
[White "vizumatv4hoda"]
[Black "lestri"]
[Result "1/2-1/2"]
[WhiteElo "2740"]
[BlackElo "2541"]
[TimeControl "180+1"]
[EndTime "10:32:10 PDT"]
[Termination "Game drawn by 50-move rule"]

1. e4 {[%clk 0:03:00.9]} 1... d6 {[%clk 0:03:00.9]} 2. d4 {[%clk 0:03:00.6]}
2... Nf6 {[%clk 0:03:01]} 3. Nc3 {[%clk 0:03:00.7]} 3... e5 {[%clk 0:03:01.5]}
4. dxe5 {[%clk 0:03:00.6]} 4... dxe5 {[%clk 0:03:02.4]} 5. Qxd8+ {[%clk
0:03:00.9]} 5... Kxd8 {[%clk 0:03:03.2]} 6. Bg5 {[%clk 0:03:01.3]} 6... c6
{[%clk 0:03:02.2]} 7. O-O-O+ {[%clk 0:02:59.5]} 7... Ke8 {[%clk 0:03:01.9]} 8.
f4 {[%clk 0:03:00.4]} 8... Nbd7 {[%clk 0:03:01.7]} 9. Nf3 {[%clk 0:02:53]} 9...
Be7 {[%clk 0:03:00.6]} 10. h3 {[%clk 0:02:43.4]} 10... h6 {[%clk 0:02:59.4]} 11.
Bxf6 {[%clk 0:02:40.5]} 11... Bxf6 {[%clk 0:02:59.2]} 12. f5 {[%clk 0:02:38.9]}
12... h5 {[%clk 0:02:53]} 13. Be2 {[%clk 0:02:38]} 13... h4 {[%clk 0:02:52.3]}
14. Kb1 {[%clk 0:02:34.9]} 14... Ke7 {[%clk 0:02:51.5]} 15. Nh2 {[%clk 0:02:33]}
15... g6 {[%clk 0:02:46.9]} 16. fxg6 {[%clk 0:02:31.5]} 16... fxg6 {[%clk
0:02:47.8]} 17. Ng4 {[%clk 0:02:32.1]} 17... Bg5 {[%clk 0:02:40.3]} 18. Rhf1
{[%clk 0:02:25.8]} 18... Bf4 {[%clk 0:02:39.6]} 19. Bc4 {[%clk 0:02:23.2]} 19...
Nb6 {[%clk 0:02:36.1]} 20. Bb3 {[%clk 0:02:23.5]} 20... Bxg4 {[%clk 0:02:35.4]}
21. hxg4 {[%clk 0:02:23.2]} 21... h3 {[%clk 0:02:35.5]} 22. gxh3 {[%clk
0:02:22.9]} 22... Rxh3 {[%clk 0:02:36.4]} 23. Rh1 {[%clk 0:02:23.2]} 23... Rah8
{[%clk 0:02:34.8]} 24. Rxh3 {[%clk 0:02:20.7]} 24... Rxh3 {[%clk 0:02:35.2]} 25.
a4 {[%clk 0:02:14.8]} 25... a5 {[%clk 0:02:30.8]} 26. Ne2 {[%clk 0:02:07.6]}
26... Nd7 {[%clk 0:02:24.8]} 27. Rf1 {[%clk 0:02:04]} 27... g5 {[%clk 0:02:23]}
28. Rg1 {[%clk 0:01:59.4]} 28... Nc5 {[%clk 0:02:21.1]} 29. Nc3 {[%clk
0:01:55.2]} 29... Re3 {[%clk 0:01:55.3]} 30. Rh1 {[%clk 0:01:54.5]} 30... Rg3
{[%clk 0:01:54.3]} 31. Rh7+ {[%clk 0:01:53.7]} 31... Kd6 {[%clk 0:01:54.1]} 32.
Ka2 {[%clk 0:01:34.2]} 32... Rxg4 {[%clk 0:01:52.8]} 33. Nb1 {[%clk 0:01:34.4]}
33... Rh4 {[%clk 0:01:37.4]} 34. Rg7 {[%clk 0:01:31.6]} 34... Nxe4 {[%clk
0:01:35.2]} 35. Na3 {[%clk 0:01:30.3]} 35... Nd2 {[%clk 0:01:32.7]} 36. Rxb7
{[%clk 0:01:26]} 36... g4 {[%clk 0:01:31.8]} 37. Rg7 {[%clk 0:01:23.5]} 37... g3
{[%clk 0:01:28.2]} 38. Rg6+ {[%clk 0:01:19.3]} 38... Kc5 {[%clk 0:01:24.3]} 39.
Be6 {[%clk 0:01:18]} 39... Rh6 {[%clk 0:01:22.9]} 40. Rxh6 {[%clk 0:01:14.7]}
40... Bxh6 {[%clk 0:01:22.5]} 41. Bh3 {[%clk 0:01:15.6]} 41... e4 {[%clk
0:01:20.4]} 42. c3 {[%clk 0:01:12.9]} 42... e3 {[%clk 0:01:18.9]} 43. Nc2 {[%clk
0:01:13.1]} 43... e2 {[%clk 0:01:18.5]} 44. Ne1 {[%clk 0:01:12.4]} 44... Be3
{[%clk 0:01:15.5]} 45. b4+ {[%clk 0:01:07.9]} 45... Kb6 {[%clk 0:01:13.1]} 46.
bxa5+ {[%clk 0:01:03.9]} 46... Kxa5 {[%clk 0:01:12.5]} 47. Nd3 {[%clk
0:01:01.2]} 47... Bf2 {[%clk 0:01:11.7]} 48. Bg2 {[%clk 0:00:56.6]} 48... e1=N
{[%clk 0:01:09.9]} 49. Nxe1 {[%clk 0:00:56.5]} 49... Bxe1 {[%clk 0:01:10.3]} 50.
Bxc6 {[%clk 0:00:57.2]} 50... Kb6 {[%clk 0:01:00.5]} 51. Ba8 {[%clk 0:00:54.5]}
51... Nc4 {[%clk 0:00:57.5]} 52. Bh1 {[%clk 0:00:49.1]} 52... Kc5 {[%clk
0:00:49.3]} 53. Kb3 {[%clk 0:00:48.9]} 53... Na5+ {[%clk 0:00:49.6]} 54. Kc2
{[%clk 0:00:48.2]} 54... Kc4 {[%clk 0:00:49.9]} 55. Kd1 {[%clk 0:00:45.8]} 55...
Bxc3 {[%clk 0:00:49.1]} 56. Ke2 {[%clk 0:00:46.1]} 56... Be5 {[%clk 0:00:46.7]}
57. Kf3 {[%clk 0:00:44.5]} 57... Kb4 {[%clk 0:00:46.2]} 58. Ke4 {[%clk
0:00:40.9]} 58... Bc7 {[%clk 0:00:45.4]} 59. Kf3 {[%clk 0:00:38.1]} 59... Kxa4
{[%clk 0:00:45.4]} 60. Ke4 {[%clk 0:00:38.1]} 60... Kb3 {[%clk 0:00:45.7]} 61.
Kf3 {[%clk 0:00:38.4]} 61... Kc2 {[%clk 0:00:46.1]} 62. Ke2 {[%clk 0:00:38.3]}
62... Kc3 {[%clk 0:00:45.1]} 63. Ba8 {[%clk 0:00:33.5]} 63... Nb3 {[%clk
0:00:44.2]} 64. Ke3 {[%clk 0:00:29.7]} 64... Bb6+ {[%clk 0:00:42.9]} 65. Kf3
{[%clk 0:00:29]} 65... Bf2 {[%clk 0:00:42.6]} 66. Ke2 {[%clk 0:00:27.2]} 66...
Nd4+ {[%clk 0:00:40.2]} 67. Kf1 {[%clk 0:00:27.4]} 67... Kd3 {[%clk 0:00:39.8]}
68. Kg2 {[%clk 0:00:26.8]} 68... Ke3 {[%clk 0:00:40]} 69. Bb7 {[%clk 0:00:24.5]}
69... Kf4 {[%clk 0:00:39.3]} 70. Ba8 {[%clk 0:00:24.7]} 70... Nf5 {[%clk
0:00:38.4]} 71. Kh3 {[%clk 0:00:21.9]} 71... Bb6 {[%clk 0:00:34.1]} 72. Bc6
{[%clk 0:00:18.7]} 72... Nd4 {[%clk 0:00:33.4]} 73. Bb7 {[%clk 0:00:17.2]} 73...
Nf3 {[%clk 0:00:32]} 74. Kg2 {[%clk 0:00:17]} 74... Ng5 {[%clk 0:00:30.4]} 75.
Kf1 {[%clk 0:00:16.7]} 75... Bc7 {[%clk 0:00:29.6]} 76. Kg2 {[%clk 0:00:17]}
76... Kg4 {[%clk 0:00:29.5]} 77. Bc8+ {[%clk 0:00:15.8]} 77... Kh4 {[%clk
0:00:29.2]} 78. Bb7 {[%clk 0:00:16.7]} 78... Ne6 {[%clk 0:00:28.7]} 79. Ba8
{[%clk 0:00:15.8]} 79... Nf4+ {[%clk 0:00:28.3]} 80. Kg1 {[%clk 0:00:14.7]}
80... Kh3 {[%clk 0:00:27.8]} 81. Bc6 {[%clk 0:00:14.5]} 81... Ne2+ {[%clk
0:00:27.5]} 82. Kf1 {[%clk 0:00:14.6]} 82... Nd4 {[%clk 0:00:26.6]} 83. Bg2+
{[%clk 0:00:13.4]} 83... Kh2 {[%clk 0:00:26.9]} 84. Bd5 {[%clk 0:00:14.3]} 84...
Nf5 {[%clk 0:00:26.4]} 85. Bb7 {[%clk 0:00:13.9]} 85... Bb6 {[%clk 0:00:25]} 86.
Ba8 {[%clk 0:00:13.6]} 86... Ne3+ {[%clk 0:00:24.1]} 87. Ke2 {[%clk 0:00:13.3]}
87... Ng4 {[%clk 0:00:25]} 88. Bb7 {[%clk 0:00:13.5]} 88... Ne5 {[%clk
0:00:21.1]} 89. Kf1 {[%clk 0:00:13.2]} 89... Ng4 {[%clk 0:00:20.1]} 90. Ba8
{[%clk 0:00:13.5]} 90... Ne3+ {[%clk 0:00:19.8]} 91. Ke2 {[%clk 0:00:14.1]}
91... g2 {[%clk 0:00:20.5]} 92. Bxg2 {[%clk 0:00:14.3]} 92... Nxg2 {[%clk
0:00:21.4]} 93. Kd3 {[%clk 0:00:15.2]} 93... Kg3 {[%clk 0:00:21.2]} 94. Ke4
{[%clk 0:00:16.1]} 94... Kg4 {[%clk 0:00:20.8]} 95. Ke5 {[%clk 0:00:16.3]} 95...
Bc7+ {[%clk 0:00:20.2]} 96. Ke4 {[%clk 0:00:17.2]} 96... Kg5 {[%clk 0:00:17.1]}
97. Kd5 {[%clk 0:00:18.1]} 97... Kf5 {[%clk 0:00:16.5]} 98. Kd4 {[%clk
0:00:18.5]} 98... Be5+ {[%clk 0:00:16.7]} 99. Kd3 {[%clk 0:00:19.4]} 99... Nf4+
{[%clk 0:00:16.9]} 100. Kc4 {[%clk 0:00:20.3]} 100... Ke4 {[%clk 0:00:16.5]}
101. Kc5 {[%clk 0:00:21.2]} 101... Ne6+ {[%clk 0:00:16.1]} 102. Kc4 {[%clk
0:00:22.1]} 102... Bd4 {[%clk 0:00:15.5]} 103. Kb5 {[%clk 0:00:22.4]} 103... Kd5
{[%clk 0:00:15.3]} 104. Ka6 {[%clk 0:00:22.9]} 104... Kc6 {[%clk 0:00:13.6]}
105. Ka5 {[%clk 0:00:23.3]} 105... Kc5 {[%clk 0:00:13.8]} 106. Ka6 {[%clk
0:00:22.7]} 106... Kc6 {[%clk 0:00:14.1]} 107. Ka5 {[%clk 0:00:23.1]} 107... Bc5
{[%clk 0:00:14.5]} 108. Ka6 {[%clk 0:00:24]} 108... Nd4 {[%clk 0:00:14.5]} 109.
Ka5 {[%clk 0:00:24.9]} 109... Nb5 {[%clk 0:00:14.9]} 110. Ka6 {[%clk 0:00:25.8]}
110... Nc7+ {[%clk 0:00:15.5]} 111. Ka5 {[%clk 0:00:26.7]} 111... Bd4 {[%clk
0:00:15.2]} 112. Ka4 {[%clk 0:00:27.6]} 112... Kc5 {[%clk 0:00:15.5]} 113. Kb3
{[%clk 0:00:28.5]} 113... Kd5 {[%clk 0:00:15.4]} 114. Kc2 {[%clk 0:00:29.4]}
114... Kc4 {[%clk 0:00:14.8]} 115. Kd2 {[%clk 0:00:26.4]} 115... Nd5 {[%clk
0:00:15.5]} 116. Ke2 {[%clk 0:00:27.3]} 116... Be3 {[%clk 0:00:15.8]} 117. Kf3
{[%clk 0:00:28.2]} 117... Kd4 {[%clk 0:00:16.2]} 118. Ke2 {[%clk 0:00:29.1]}
118... Ke4 {[%clk 0:00:16.3]} 119. Kf1 {[%clk 0:00:29.5]} 119... Kf3 {[%clk
0:00:16]} 120. Ke1 {[%clk 0:00:30.4]} 120... Nc3 {[%clk 0:00:16]} 121. Kf1
{[%clk 0:00:31.3]} 121... Bd2 {[%clk 0:00:15.5]} 122. Kg1 {[%clk 0:00:31.5]}
122... Ne4 {[%clk 0:00:16.4]} 123. Kh1 {[%clk 0:00:32.4]} 123... Kg3 {[%clk
0:00:15.3]} 124. Kg1 {[%clk 0:00:32.5]} 124... Ng5 {[%clk 0:00:14.7]} 125. Kf1
{[%clk 0:00:33.4]} 125... Kf3 {[%clk 0:00:15]} 126. Kg1 {[%clk 0:00:33.7]}
126... Nh3+ {[%clk 0:00:15.5]} 127. Kf1 {[%clk 0:00:34.6]} 127... Nf4 {[%clk
0:00:15.5]} 128. Kg1 {[%clk 0:00:35.5]} 128... Bc3 {[%clk 0:00:14.8]} 129. Kh2
{[%clk 0:00:36.4]} 129... Nh5 {[%clk 0:00:14.5]} 130. Kg1 {[%clk 0:00:37.3]}
130... Be1 {[%clk 0:00:14.2]} 131. Kh2 {[%clk 0:00:38.2]} 131... Bg3+ {[%clk
0:00:14.3]} 132. Kg1 {[%clk 0:00:39.1]} 132... Nf4 {[%clk 0:00:14.4]} 133. Kf1
{[%clk 0:00:40]} 133... Nd3 {[%clk 0:00:12.3]} 134. Kg1 {[%clk 0:00:40.9]}
134... Bf2+ {[%clk 0:00:11.7]} 135. Kf1 {[%clk 0:00:41.8]} 135... Bg3 {[%clk
0:00:10.1]} 136. Kg1 {[%clk 0:00:41.9]} 136... Ne5 {[%clk 0:00:11]} 137. Kf1
{[%clk 0:00:41.9]} 137... Ng4 {[%clk 0:00:11.3]} 138. Kg1 {[%clk 0:00:42.2]}
138... Bf2+ {[%clk 0:00:11.6]} 139. Kh1 {[%clk 0:00:41.6]} 139... Ne3 {[%clk
0:00:11.9]} 140. Kh2 {[%clk 0:00:41.7]} 140... Nf5 {[%clk 0:00:11.8]} 141. Kh3
{[%clk 0:00:41.4]} 141... Ne3 {[%clk 0:00:10.4]} 142. Kh2 {[%clk 0:00:41.5]}
142... Nf1+ {[%clk 0:00:09.5]} 1/2-1/2

[Event "*** Titled Tuesday Blitz"]
[Site "Chess.com"]
[Date "2020.04.14"]
[Round "4"]
[White "juniortay"]
[Black "Mbneu"]
[Result "1-0"]
[WhiteElo "2462"]
[BlackElo "2215"]
[TimeControl "180+1"]
[EndTime "10:34:22 PDT"]
[Termination "juniortay won by resignation"]

1. e4 {[%clk 0:03:00.9]} 1... c5 {[%clk 0:02:58.4]} 2. Nf3 {[%clk 0:03:00.8]}
2... Nf6 {[%clk 0:02:58.3]} 3. d3 {[%clk 0:02:59.3]} 3... d5 {[%clk 0:02:57.8]}
4. Nbd2 {[%clk 0:03:00.2]} 4... Nc6 {[%clk 0:02:55.1]} 5. g3 {[%clk 0:03:00.4]}
5... Bg4 {[%clk 0:02:49.6]} 6. Bg2 {[%clk 0:02:58.8]} 6... e6 {[%clk 0:02:30.7]}
7. O-O {[%clk 0:02:57.9]} 7... Be7 {[%clk 0:02:28.6]} 8. c3 {[%clk 0:02:57.7]}
8... O-O {[%clk 0:02:27.2]} 9. Qe2 {[%clk 0:02:57.7]} 9... dxe4 {[%clk 0:02:23]}
10. dxe4 {[%clk 0:02:57.5]} 10... Nd7 {[%clk 0:02:20.4]} 11. h3 {[%clk
0:02:55.2]} 11... Bh5 {[%clk 0:02:18.6]} 12. a4 {[%clk 0:02:53]} 12... Nde5
{[%clk 0:02:17.4]} 13. g4 {[%clk 0:02:51.8]} 13... Bg6 {[%clk 0:02:14.8]} 14.
Nxe5 {[%clk 0:02:50.9]} 14... Nxe5 {[%clk 0:02:14.2]} 15. f4 {[%clk 0:02:50.9]}
15... Nc6 {[%clk 0:02:12.4]} 16. f5 {[%clk 0:02:49]} 1-0

[Event "*** Titled Tuesday Blitz"]
[Site "Chess.com"]
[Date "2020.04.14"]
[Round "4"]
[White "Funkmaus"]
[Black "ridnani2021"]
[Result "1-0"]
[WhiteElo "2183"]
[BlackElo "1708"]
[TimeControl "180+1"]
[EndTime "10:35:22 PDT"]
[Termination "Funkmaus won by resignation"]

1. d4 {[%clk 0:03:00.9]} 1... Nf6 {[%clk 0:02:59.2]} 2. Nf3 {[%clk 0:03:00.1]}
2... d6 {[%clk 0:02:57.5]} 3. c3 {[%clk 0:02:59.1]} 3... g6 {[%clk 0:02:57.5]}
4. g3 {[%clk 0:02:58.3]} 4... Bg7 {[%clk 0:02:58.2]} 5. Bg2 {[%clk 0:02:58.6]}
5... O-O {[%clk 0:02:58.9]} 6. O-O {[%clk 0:02:59.5]} 6... Nbd7 {[%clk
0:02:59.5]} 7. Nbd2 {[%clk 0:02:59.9]} 7... c5 {[%clk 0:03:00.1]} 8. e3 {[%clk
0:02:58.6]} 8... Rb8 {[%clk 0:03:00.3]} 9. a4 {[%clk 0:02:57.8]} 9... b6 {[%clk
0:03:00.5]} 10. b3 {[%clk 0:02:57.3]} 10... Bb7 {[%clk 0:03:00.8]} 11. Bb2
{[%clk 0:02:57.1]} 11... Qc7 {[%clk 0:03:01.2]} 12. Rc1 {[%clk 0:02:54.3]} 12...
e5 {[%clk 0:03:01.4]} 13. dxe5 {[%clk 0:02:53.5]} 13... dxe5 {[%clk 0:03:01.8]}
14. Nc4 {[%clk 0:02:49.8]} 14... Rbd8 {[%clk 0:03:00.8]} 15. Qd6 {[%clk
0:02:47.3]} 15... Qxd6 {[%clk 0:02:52]} 16. Nxd6 {[%clk 0:02:48.2]} 16... Bc6
{[%clk 0:02:49.9]} 17. Rcd1 {[%clk 0:02:36]} 17... e4 {[%clk 0:02:48]} 18. Ng5
{[%clk 0:02:32.5]} 18... Ne5 {[%clk 0:02:42.9]} 19. c4 {[%clk 0:02:27]} 19...
Nd3 {[%clk 0:02:28.6]} 20. Bxf6 {[%clk 0:02:23.9]} 20... Rxd6 {[%clk 0:02:26.4]}
21. Be7 {[%clk 0:02:14.9]} 21... f6 {[%clk 0:02:13.8]} 22. Bxd6 {[%clk
0:02:09.8]} 22... fxg5 {[%clk 0:02:13.2]} 23. Bxf8 {[%clk 0:02:08.7]} 23... Kxf8
{[%clk 0:02:12.9]} 24. Rxd3 {[%clk 0:01:59.2]} 24... exd3 {[%clk 0:02:12.6]} 1-0

[Event "*** Titled Tuesday Blitz"]
[Site "Chess.com"]
[Date "2020.04.14"]
[Round "4"]
[White "Klavdia_Nik"]
[Black "talaicito"]
[Result "1-0"]
[WhiteElo "2143"]
[BlackElo "2294"]
[TimeControl "180+1"]
[EndTime "10:35:28 PDT"]
[Termination "Klavdia_Nik won by resignation"]

1. Nf3 {[%clk 0:03:00.9]} 1... e6 {[%clk 0:02:59.1]} 2. c4 {[%clk 0:03:00.8]}
2... f5 {[%clk 0:02:59.1]} 3. b3 {[%clk 0:03:00.3]} 3... Nf6 {[%clk 0:02:59.3]}
4. Bb2 {[%clk 0:03:00.6]} 4... a5 {[%clk 0:02:59.8]} 5. Nc3 {[%clk 0:02:56.8]}
5... Be7 {[%clk 0:02:56.3]} 6. g3 {[%clk 0:02:57.1]} 6... O-O {[%clk 0:02:55.4]}
7. Bg2 {[%clk 0:02:57.7]} 7... d6 {[%clk 0:02:54.2]} 8. d4 {[%clk 0:02:56.8]}
8... Ne4 {[%clk 0:02:50.8]} 9. Qc2 {[%clk 0:02:55.4]} 9... Nxc3 {[%clk
0:02:48.4]} 10. Bxc3 {[%clk 0:02:54]} 10... Nc6 {[%clk 0:02:44.3]} 11. e4 {[%clk
0:02:48.2]} 11... e5 {[%clk 0:02:07.2]} 12. dxe5 {[%clk 0:02:40.3]} 12... dxe5
{[%clk 0:02:06.8]} 13. Nxe5 {[%clk 0:02:27.5]} 13... Nxe5 {[%clk 0:02:06.2]} 14.
Bxe5 {[%clk 0:02:27.2]} 14... Bb4+ {[%clk 0:02:05.7]} 15. Bc3 {[%clk 0:02:18.3]}
15... Qf6 {[%clk 0:02:00.4]} 16. Rc1 {[%clk 0:02:13.5]} 16... fxe4 {[%clk
0:01:56.2]} 17. O-O {[%clk 0:02:13.2]} 17... Bf5 {[%clk 0:01:47.2]} 18. Bxf6
{[%clk 0:02:11.3]} 18... e3 {[%clk 0:01:46.8]} 19. Qxf5 {[%clk 0:02:07.1]} 19...
exf2+ {[%clk 0:01:45.9]} 1-0

[Event "*** Titled Tuesday Blitz"]
[Site "Chess.com"]
[Date "2020.04.14"]
[Round "4"]
[White "vinniethepooh"]
[Black "Irishchessman16"]
[Result "1-0"]
[WhiteElo "2625"]
[BlackElo "2356"]
[TimeControl "180+1"]
[EndTime "10:35:39 PDT"]
[Termination "vinniethepooh won by resignation"]

1. d4 {[%clk 0:03:00.9]} 1... d5 {[%clk 0:02:14.4]} 2. c4 {[%clk 0:03:00]} 2...
e6 {[%clk 0:02:12.6]} 3. Nc3 {[%clk 0:02:59.3]} 3... c6 {[%clk 0:02:10.3]} 4.
Nf3 {[%clk 0:02:58.8]} 4... Nf6 {[%clk 0:02:08.8]} 5. g3 {[%clk 0:02:57.9]} 5...
dxc4 {[%clk 0:02:05.3]} 6. Bg2 {[%clk 0:02:58.1]} 6... Nbd7 {[%clk 0:02:05.4]}
7. O-O {[%clk 0:02:56.2]} 7... b5 {[%clk 0:02:05.4]} 8. e4 {[%clk 0:02:56.2]}
8... Bb7 {[%clk 0:02:02.5]} 9. e5 {[%clk 0:02:56.4]} 9... Nd5 {[%clk 0:02:01.9]}
10. Ng5 {[%clk 0:02:56.5]} 10... Be7 {[%clk 0:02:00.7]} 11. Qh5 {[%clk
0:02:55.6]} 11... g6 {[%clk 0:01:55]} 12. Qh6 {[%clk 0:02:55.5]} 12... Bf8
{[%clk 0:01:54.8]} 13. Qh3 {[%clk 0:02:54.1]} 13... h6 {[%clk 0:01:44.1]} 14.
Nce4 {[%clk 0:02:38.9]} 14... N7b6 {[%clk 0:01:12.6]} 15. Nxe6 {[%clk
0:02:30.2]} 15... fxe6 {[%clk 0:01:12.1]} 16. Qxe6+ {[%clk 0:02:31.1]} 16... Be7
{[%clk 0:01:08.3]} 17. Nd6+ {[%clk 0:02:30]} 1-0